Cogmind - Beta 15 @@@ ROGUE MODE // 2025.07.10 @ 15:27:11 Player: Bec Result: Self-destructed Performance ------------- Evolutions (1) 500 Regions Visited (3) 600 Robots Destroyed (14) 70 Value Destroyed (411) 411 Prototype IDs (1) 20 Alien Tech Used (0) 0 Bonus (0) 0 TOTAL SCORE: 1601 Bonus ------- None Cogmind --------- Core Integrity 67/400 Matter 201/300 Energy 100/100 System Corruption 0% Temperature Hot (293) Movement Core (400) Ox7 Location -9/Materials Parts ------- > --- POWER (1) -------- (None) > --- PROPULSION (3) --- (None) > --- UTILITY (3) ------ Small Storage Unit Sensor Drone Bay (20/20) > --- WEAPON (2) ------- Pulse Rifle > --- INVENTORY (8) ---- Ion Engine Ion Engine Flight Unit VTOL Module Pulse Rifle Mining Laser Peak State ------------ > --- POWER ------------ Light Angular Momentum Engine > --- PROPULSION ------- Light Treads Light Treads > --- UTILITY ---------- Small Storage Unit Sensor Array Sensor Drone Bay > --- WEAPON ----------- Pulse Rifle Pulse Rifle > --- INVENTORY -------- Ion Engine Ion Engine Light Nuclear Core Flight Unit Pulse Rifle Mining Laser [Rating: 24] Favorites ----------- Power Light Angular Momentum Engine Engine Light Angular Momentum Engine Power Core Light Nuclear Core Propulsion Light Treads Treads Light Treads Utility Small Storage Unit Device Sensor Array Storage Small Storage Unit Weapon Assault Rifle Energy Gun Pulse Rifle Ballistic Gun Assault Rifle Build | -11 -10 -10 -9 ------- Run | Yrd Mat Min Mat Slots Evolved 2 | . . . 2 Power . | . . . . Propulsion 1 | . . . 1 Utility 1 | . . . 1 Weapon . | . . . . Parts Attached 14 | 5 3 1 5 Power 3 | 1 . 1 1 Engine 2 | 1 . 1 . Core 1 | . . . 1 Reactor . | . . . . Propulsion 2 | 2 . . . Treads 2 | 2 . . . Leg . | . . . . Wheel . | . . . . Hover . | . . . . Flight . | . . . . Utility 3 | 1 1 . 1 Device 2 | . 1 . 1 Storage 1 | 1 . . . Processor . | . . . . Hackware . | . . . . Protection . | . . . . Artifact . | . . . . Weapon 6 | 1 2 . 3 Energy Gun 4 | . 1 . 3 Energy Cannon . | . . . . Ballistic Gun 2 | 1 1 . . Ballistic Cannon . | . . . . Launcher . | . . . . Special Weapon . | . . . . Impact Weapon . | . . . . Slashing Weapon . | . . . . Piercing Weapon . | . . . . Special Melee Weapon . | . . . . Unidentified Prototypes 1 | . . . 1 Parts Lost 7 | . . . 7 Power 2 | . . . 2 Propulsion 2 | . . . 2 Utility 1 | . . . 1 Weapon 2 | . . . 2 Highest Loss Streak 7 | . . . 7 To Critical Strikes . | . . . . Average Backups 6 | 2 4 7 7 Power 2 | . 2 3 2 Propulsion . | . . . 1 Utility . | . . 1 . Weapon 3 | . 1 3 2 Tool/Special . | . . . . Unused Backups 10 | . 1 2 7 Power 3 | . 1 1 1 Propulsion 2 | . . . 2 Utility 1 | . . 1 . Weapon 4 | . . . 4 Tool/Special . | . . . . Average Slot Usage (%) 95 | . 94 100 80 Engine 13 | . 14 14 10 Treads 26 | . 28 28 17 Device 14 | . 10 14 18 Storage 13 | . 14 14 11 Energy Gun 4 | . 7 . 16 Ballistic Gun 21 | . 19 28 5 Peak Build Rating 24 | 5 8 12 24 Average Rating 11 | 3 6 10 21 On Entrance 6 | . 5 7 12 Naked Turns . | . . . . Heaviest Build 35 | 12 14 18 35 Greatest Support 40 | 40 40 40 40 Greatest Overweight (x) . | . . . . Average Overweight (x) . | . . . . Largest Inventory Capacity 8 | 8 8 8 8 Average Capacity 7 | 7 8 8 8 Most Carried 8 | 4 8 8 8 Average Carried 6 | 1 4 7 7 Final Capacity 8 | 8 8 8 8 Final Carried 8 | 2 7 8 6 Class Distribution -------------------- 100% | Mutant Dominant Class ---------------- Mutant | -10/Materials Mutant | -10/Mines Mutant | -9/Materials Resources | -11 -10 -10 -9 ----------- Run | Yrd Mat Min Mat Matter Collected 430 | 202 145 83 . Remotely . | . . . . Salvage Created 548 | . 251 238 59 Parts 31 | . 15 13 3 Haulers Intercepted . | . . . . Recyclers Shooed . | . . . . Parts Field Recycled . | . . . . Retrieved Matter . | . . . . Parts Self-Destructed . | . . . . Prevented . | . . . . Kills | -11 -10 -10 -9 ------- Run | Yrd Mat Min Mat Combat Hostiles Destroyed 12 | . 6 4 2 Guns 11 | . 6 4 1 Classes Destroyed 3 | . 1 2 . Recycler 2 | . . 2 . Swarmer 2 | . . 2 . Grunt 10 | . 6 2 2 Best Kill Streak 2 | . 2 2 2 Combat Bots Only 2 | . 2 2 2 Max Kills in Single Turn 1 | . 1 1 1 Gunslinging . | . . . . Exploded . | . . . . Melee . | . . . . Uniques/NPCs Destroyed . | . . . . Combat | -11 -10 -10 -9 -------- Run | Yrd Mat Min Mat Hostile Shots Fired 137 | . 22 29 86 Missed 23 | . 5 5 13 Hits 114 | . 17 24 73 Projectile 114 | . 17 24 73 Critical Strikes 3 | . . 1 2 Damage Taken 1517 | . 203 230 1084 Core 352 | . 10 9 333 Absorbed by Shields . | . . . . Core Remaining (%) 96 | 100 . 92 . Volleys Fired 64 | . 21 20 23 Largest 2 | . 2 2 2 Hottest 126 | . 60 40 126 Shots Fired 116 | . 42 40 34 Gun 116 | . 42 40 34 Cannon . | . . . . Launcher . | . . . . Special . | . . . . Kinetic 65 | . 25 40 . Thermal 51 | . 17 . 34 Explosive . | . . . . Electromagnetic . | . . . . Robot Hit Streak 20 | . 13 20 13 Robot Miss Streak 3 | . 3 2 2 Penetration Max . | . . . . Secondary Targets 2 | . . 1 1 Max Gunslinging Chain 1 | . . 1 1 Shots Hit Robots 89 | . 31 32 26 Core Hits 26 | . 13 10 3 Critical Kills . | . . . . Critical Parts Destroyed . | . . . . Critical Strikes 2 | . . . 2 Burn 2 | . . . 2 Melee Attacks . | . . . . Impact . | . . . . Slashing . | . . . . Piercing . | . . . . Sneak Attacks . | . . . . Combat Hostiles . | . . . . Follow-up Attacks . | . . . . Damage Inflicted 1128 | . 341 327 460 Guns 1128 | . 341 327 460 Cannons . | . . . . Explosions . | . . . . Melee . | . . . . Ramming . | . . . . Kinetic 551 | . 224 327 . Thermal 577 | . 117 . 460 Explosive . | . . . . Electromagnetic . | . . . . Impact . | . . . . Slashing . | . . . . Piercing . | . . . . Highest Corruption . | . . . . Average Corruption . | . . . . Corruption Purged . | . . . . Corruption Blocked . | . . . . Overload Shots . | . . . . Overflow Damage . | . . . . Projectiles . | . . . . Explosions . | . . . . Melee . | . . . . Knockbacks . | . . . . Impact . | . . . . Kinetic . | . . . . Secondary . | . . . . Self-Inflicted Damage . | . . . . Shots . | . . . . Rammed . | . . . . Targets Rammed . | . . . . Kicked . | . . . . Crushed . | . . . . Highest Temperature 528 | . 36 27 528 Average Temperature 159 | . 15 9 270 Received Heat Transfer 633 | . 114 81 438 Effects 7 | . . . 7 Shutdowns 2 | . . . 2 Interference 1 | . . . 1 Matter Decay 1 | . . . 1 Damage (minor) 2 | . . . 2 Damage (core) 1 | . . . 1 Siege Activations . | . . . . Martial Activations . | . . . . Shielding Activations . | . . . . Robots Disrupted . | . . . . Combat Hostiles . | . . . . Robots Corrupted . | . . . . Combat Hostiles . | . . . . Parts Fried . | . . . . Impact Corruptions . | . . . . Robots Melted 1 | . . . 1 Combat Hostiles 1 | . . . 1 Parts Melted 1 | . . . 1 Heat Transferred 1422 | . 275 . 1147 Parts Sabotaged . | . . . . Parts Stolen . | . . . . Parts Stripped . | . . . . Power Chain Reactions . | . . . . Alert | -11 -10 -10 -9 ------- Run | Yrd Mat Min Mat Maximum Alert Level . | . . . . Low Security (%) 100 | 100 100 100 100 Level 1 . | . . . . Level 2 . | . . . . Level 3 . | . . . . Level 4 . | . . . . Level 5 . | . . . . High Security . | . . . . Max Security . | . . . . Peak Influence 95 | . 95 55 40 Initial 15 | . . 15 . Average 12 | . 39 7 3 Influence Increases 366 | . 198 116 52 Destroy 0b10 Robot/C 240 | . 120 80 40 Destroy 0b10 Robot/NC 10 | . . 10 . Destroy Leader 50 | . 30 10 10 Allied During Kill 1 | . . 1 . Trap Triggered on 0b10 10 | . 10 . . Successful Hack 10 | . 8 . 2 Lose Combat Pursuer 45 | . 30 15 . Influence Decreases 366 | . 158 156 52 Entered New Map 25 | . . 25 . Time Decay 300 | . 158 120 22 Lost Part 30 | . . . 30 Lost Ally 11 | . . 11 . Squads Dispatched 4 | . 3 . 1 Investigation 2 | . 2 . . Extermination . | . . . . Reinforcement 2 | . 1 . 1 Assault . | . . . . Garrison . | . . . . Intercept . | . . . . Searches Triggered . | . . . . Construction Impeded . | . . . . Haulers Reinforced . | . . . . Active Scanning Responses . | . . . . Cargo Convoy Interrupts . | . . . . Stealth | -11 -10 -10 -9 --------- Run | Yrd Mat Min Mat Distress Signals 2 | . . . 2 Communications Jammed . | . . . . Distress Signals . | . . . . Times Spotted 19 | . 8 5 6 Peak Tracking Total 4 | . 3 3 4 Tactical Retreats 3 | . 2 1 . Traps | -11 -10 -10 -9 ------- Run | Yrd Mat Min Mat Traps Triggered . | . . . . Indirectly . | . . . . Trap Hack Attempts . | . . . . Triggered . | . . . . Disarmed . | . . . . Reprogrammed 6 | . 6 . . Reused 1 | . 1 . . Traps Extracted . | . . . . Installed . | . . . . Triggered 1 | . 1 . . Machines | -11 -10 -10 -9 ---------- Run | Yrd Mat Min Mat Machines Disabled . | . . . . Max in Single Turn . | . . . . Machines Repaired . | . . . . Machines Dismantled . | . . . . Machines Sabotaged . | . . . . Overloaded Fab Kills . | . . . . Hacking | -11 -10 -10 -9 --------- Run | Yrd Mat Min Mat Machines Accessed 3 | . 1 1 1 Terminals 1 | . 1 . . Fabricators . | . . . . Repair Stations . | . . . . Recycling Units . | . . . . Scanalyzers 1 | . . . 1 Garrison Access . | . . . . Total Hacks 11 | . 6 1 4 Successful 8 | . 3 1 4 Failed 3 | . 3 . . Catastrophic . | . . . . Database Lockouts . | . . . . Manual 2 | . 2 . . Terminals 6 | . 6 . . Fabricators . | . . . . Repair Stations . | . . . . Recycling Units . | . . . . Scanalyzers 4 | . . . 4 Garrison Access . | . . . . Terminal Hacks 4 | . 3 1 . Open Door 1 | . . 1 . Locate Traps 1 | . 1 . . Reprogram Traps 1 | . 1 . . Patrol Status 1 | . 1 . . Fabricator Hacks . | . . . . Repair Station Hacks . | . . . . Recycling Unit Hacks . | . . . . Scanalyzer 4 | . . . 4 Insert Component 2 | . . . 2 Analyze 2 | . . . 2 Garrison Access Hacks . | . . . . Unauthorized Hacks . | . . . . Terminals . | . . . . Fabricators . | . . . . Repair Stations . | . . . . Recycling Units . | . . . . Scanalyzers . | . . . . Garrison Access . | . . . . Data Cores Recovered . | . . . . Used . | . . . . Hacking Detections 2 | . 1 . 1 Full Trace Events 1 | . 1 . . Feedback Events . | . . . . Feedback Blocked . | . . . . Robot Schematics Acquired . | . . . . Robots Built . | . . . . Authchips . | . . . . Time . | . . . . Total Robot Build Rating . | . . . . Part Schematics Acquired 2 | . . . 2 Parts Built . | . . . . Authchips . | . . . . Time . | . . . . Total Part Build Rating . | . . . . Parts Repaired . | . . . . Time . | . . . . Parts Recycled . | . . . . Recycled Matter . | . . . . Retrieved Matter . | . . . . Retrieved Components . | . . . . Parts Scanalyzed 2 | . . . 2 Part Schematics Acquired 2 | . . . 2 Parts Damaged . | . . . . Bothacking | -11 -10 -10 -9 ------------ Run | Yrd Mat Min Mat Used RIF Installer . | . . . . Robots Hacked . | . . . . Non-combat . | . . . . Combat . | . . . . Robot Hacks Applied . | . . . . Relay Couplers Released . | . . . . Fabnet Peak Effective % . | . . . . Robots Rewired . | . . . . Allies Hacked . | . . . . Hacks Repelled . | . . . . Allies | -11 -10 -10 -9 -------- Run | Yrd Mat Min Mat Total Allies 1 | . . 1 . Largest Group 1 | . . 1 . Highest-Rated Group 31 | . . 31 . Highest-Rated Ally 31 | . . 31 . Total Orders . | . . . . Ally Attacks 8 | . . 8 . Total Damage 147 | . . 147 . Kills . | . . . . Allies Corrupted . | . . . . Allies Melted 1 | . . 1 . Intel | -11 -10 -10 -9 ------- Run | Yrd Mat Min Mat Active Infowar (turns) 1364 | . 240 926 198 Sensors 1364 | . 240 926 198 Robot Analysis Total . | . . . . Derelict Logs Recovered 2 | . . 2 . Drone Launches 7 | . . . 7 Drone Recoveries 7 | . . . 7 Exploration | -11 -10 -10 -9 ------------- Run | Yrd Mat Min Mat Turns Passed 1592 | 59 328 926 279 Spaces Moved 745 | 37 120 510 78 Core 10 | 10 . . . Treads 735 | 27 120 510 78 Legs . | . . . . Wheels . | . . . . Hover . | . . . . Flight . | . . . . Fastest Speed 50 | 50 160 160 160 Average Speed 158 | 130 160 160 160 Slowest Speed 160 | 160 160 160 160 Overloaded Moves . | . . . . Propulsion Burnouts . | . . . . Robots Hopped . | . . . . Potential Cave-ins . | . . . . Cave-ins Triggered . | . . . . Exploration Rate (%) 33 | 4 27 92 9 Regions Visited 3 Branch Regions 1 Pre-discovered Areas 1 | . . 1 . Known Exits Taken . | . . . . Unknown Exits Taken 3 | 1 1 1 . Scrap Searched 1 | . . 1 . Spaces Dug . | . . . . Terrain Destroyed . | . . . . Melee . | . . . . Projectile . | . . . . AOE . | . . . . Terrain Rammed . | . . . . Walls Destroyed . | . . . . Machines Disabled . | . . . . Actions | -11 -10 -10 -9 --------- Run | Yrd Mat Min Mat Total 1049 | 48 215 586 200 Wait 195 | . 63 49 83 Move 742 | 36 119 509 78 Hop . | . . . . Pick Up 24 | 7 8 4 5 Fast Attach . | . . . . Attach 13 | 5 2 . 6 Detach 1 | . . . 1 Swap 2 | . 1 1 . Drop 8 | . 1 3 4 Fire 64 | . 21 20 23 Melee . | . . . . Ram . | . . . . Kick . | . . . . Crush . | . . . . Escape Stasis . | . . . . Rewire . | . . . . Trap . | . . . . Miscellaneous . | . . . . Route ------- -11/Scrapyard -10/Materials (discovered 2 exits: *Min x2) -10/Mines (discovered 2 exits: *Mat x2) -9/Materials (discovered 2 exits: Min x2) History --------- Turn | Location | Event 9 | -11/Scrapyard | Discovered new exit (range 16) 60 | -11/Scrapyard | Entered Materials 307 | -10/Materials | Build established: Mutant 323 | -10/Materials | Discovered new exit (range 16) 350 | -10/Materials | Discovered new exit (range 4) 388 | -10/Materials | Entered Mines 417 | -10/Mines | Received a Mining Laser from a helpful Derelict 537 | -10/Mines | Learned location of Storage (-8) 591 | -10/Mines | Discovered new exit (range 6) 832 | -10/Mines | Found the Drone Emporium 840 | -10/Mines | Found Prototype Device 1159 | -10/Mines | Discovered new exit (range 11) 1314 | -10/Mines | Entered Materials 1314 | -9/Materials | Evolved 2 slots: Propulsion x1, Utility x1 1314 | -9/Materials | Identified Sensor Drone Bay 1315 | -9/Materials | Identified exit to Mines 1583 | -9/Materials | Core integrity fell below 50% 1592 | -9/Materials | Core integrity fell below 20% 1593 | -9/Materials | Self-destructed Last Messages --------------- 01563_ Power failure, Lgt. Angular Momentum Engine shutdown. 01563_ Overheating: Sensor Drone Bay damaged (-146). 01571_ Pulse Rifle destroyed. 01575_ Lgt. Angular Momentum Engine destroyed. 01578_ R-06 Scavenger collects Ion Engine. 01580_ Y-45 Defender heat damages Beam Rifle. 01580_ Y-45 Defender suffers critical hit (Burn). 01580_ Pulse Rifle destroyed. 01581_ Overheating: Lgt. Nuclear Core damaged (-10). 01581_ Y-45 Defender heat damages Heat Sink. 01581_ Lgt. Nuclear Core destroyed. 01582_ R-06 Scavenger collects Aluminum Leg. 01583_ Overheating: Core damaged (-76). 01585_ Overheating: Matter decay (-67). 01587_ K-01 Serf collects debris. 01590_ Y-45 Defender heat short circuits Lgt. Treads. 01590_ K-01 Serf collects debris. 01592_ M-13 Machinist repairs Y-45 Defender. 01593_ Y-45 Defender heat spikes uncontrollably. Map ----- +----------------------------------------------------+ | ???????????????????????????????? | | ????????????????????????######## | | ????????????????????##### # | | ????????????????##### # "" # | | ????????????????#!! # """# | | ????????????????#!! # S"# | | ????????????????#[[ # # | | ????????????????#[[[ # """ # | | ????????????????#[[[ + """ # | | ????????????????# # """ # | | ????????????????##### # # | | ????????????????????# # """ # | | ????????????######### # """ # | | ????????????# + # """ # | | ????????????# " # # # | | ????????????# """ # ######## | | ????????????# """ # #??????? | | ????????????# """ # #??????? | | ????????????# "" # #??????? | | ????????????# """ # #??????? | | ????????????# "" # ######## | | ????????????# "" # # # | | ????????????# " # # # | | ????????????# # # # | | ????????????######### # == # | | ????????????????????#% #@ == # | | ????????????????????#! #Yk! # | | ?????????????######## /mY # | | ?????????????# # """ # | | ?????? # """ # | | ?????????##### # """ # | | ?????????????# #### # """ # | | ?????????????# ????# # """ # | | ?????????????# ?????# # # | | ?????????????#??????# #####??# | | ????????????????????# #??????? | | ????????????????????# #??????? | | ????????????????????# #??????? | | ????????????????????# #??????? | | ????????????????????# #??????? | | ????????????????????# #??????? | | ????????????????????# #??????? | | ????????????????????# #??????? | | ????????????????????? +??????? | | ????????????????????? ???????? | | ???????????????????????????????? | | ???????????????????????????????? | | ???????????????????????????????? | | ???????????????????????????????? | | ???????????????????????????????? | +----------------------------------------------------+ Best States ------------- Heat Dissipation 28 Energy Generation 18 Energy Capacity 250 Matter Stores 300 Matter Capacity 300 Sight Range 16 Robot Scan Range 14 Terrain Scan Density 10 Evasion (%) 40 Recoil Reduction 2 Item Schematics ----------------- Lgt. Angular Momentum Engine | -9/Materials | Scanalyzed Pulse Rifle | -9/Materials | Scanalyzed Robot Schematics ------------------ None Fabricated ------------ Nothing Repaired ---------- Nothing Alien Tech Used ----------------- None Achievements -------------- Release The Drones! Challenges ------------ None Game ------ Seed SmartAbsorptionCasing Manual? 0 Play Time 00:15:51 Cumulative 6.9 hours Start 2025.07.09 @ 00:03:39 End 2025.07.10 @ 15:27:11 Sessions 3 Manual Loads 0 Difficulty Rogue Special Mode None Game No. 9 Rogue 9 Adventurer 0 Explorer 0 Win Type - Total 0 Types 0/0/0/0/0/0/0/0/0/0 Lore% 5 Gallery% 8 Achievement% 12 Wizard Run 0 Options --------- Layout 1 ASCII 0 Keyboard 0 Movement Mouse Keybinds 0 Fullscreen 2 Font 16/SmallcapsGlow Map View 55x38 Zoom Use 0% Tactical HUD 1 Map Filters NONE Filters NONE Steam 1 RUN: 1a763929-e77a-4a6e-bb9c-0267e2932508